bitfinex-derivatives/quotes_BTCF0:USTF0_20210708
["timestamp","ask_amount","ask_price","bid_price","bid_amount"]
[1625715852894,12.67134499,33330.0,33329.0,0.9664]
[1625715853046,12.67134499,33330.0,33329.0,0.9094]
[1625715853194,12.70668471,33330.0,33329.0,0.9094]
[1625715854094,12.70668471,33330.0,33329.0,0.9664]
[1625715854844,11.70668471,33330.0,33329.0,0.9664]
[1625715854995,12.70668471,33330.0,33329.0,0.9094]
[1625715855821,12.70668471,33330.0,33329.0,0.9664]
[1625715856647,11.12184872,33330.0,33329.0,0.9094]
[1625715856797,12.70650339,33330.0,33329.0,0.9094]
[1625715860329,12.70650339,33330.0,33329.0,0.9664]
[1625715860479,12.46713339,33330.0,33329.0,1.29322]
[1625715860629,10.88247872,33330.0,33329.0,1.29322]
[1625715860780,10.847139,33330.0,33329.0,1.29322]
[1625715861233,9.43913178,33330.0,33329.0,1.29322]
[1625715861380,6.15416585,33330.0,33329.0,1.96612016]
[1625715861530,7.15416585,33330.0,33329.0,1.96612016]
[1625715861680,7.15416585,33330.0,33329.0,2.96908326]
[1625715861829,6.91359041,33330.0,33329.0,2.96908326]
[1625715861980,6.21092055,33330.0,33329.0,3.2096587]
[1625715862507,5.21092055,33330.0,33329.0,3.2096587]
[1625715862657,5.21092055,33330.0,33329.0,4.37973529]
[1625715863785,5.19567544,33330.0,33329.0,4.37973529]
[1625715864613,3.47827544,33330.0,33329.0,4.37973529]
[1625715864763,1.0,33333.0,33329.0,4.37973529]
[1625715864913,0.7049924,33334.0,33329.0,4.37973529]
[1625715865063,0.001,33334.0,33332.0,2.83758283]
[1625715865212,0.001,33334.0,33333.0,1.726171]
[1625715865887,0.001,33334.0,33333.0,2.8941492]
[1625715866039,0.001,33334.0,33333.0,3.37530008]
[1625715866188,0.001,33334.0,33333.0,2.20732188]
[1625715870545,1.001,33334.0,33333.0,2.20732188]
[1625715870696,1.001,33334.0,33333.0,1.20581928]
[1625715870845,1.32782,33334.0,33333.0,1.20581928]
[1625715870997,1.32782,33334.0,33333.0,0.53815088]
[1625715870998,2.03115192,33334.0,33333.0,0.53815088]
[1625715871147,3.08604723,33334.0,33333.0,0.53815088]
[1625715872349,5.72331665,33334.0,33333.0,0.53815088]
[1625715872499,5.73856121,33334.0,33333.0,0.24057544]
[1625715872649,4.73856121,33334.0,33333.0,0.24057544]
[1625715872799,4.73856121,33334.0,33329.0,1.14997544]
[1625715872800,5.73856121,33334.0,33329.0,1.14997544]
[1625715873122,4.39606315,33330.0,33329.0,1.14997544]
[1625715873250,5.39606315,33330.0,33329.0,1.14997544]
[1625715874003,5.63663859,33330.0,33329.0,1.14997544]
[1625715875200,5.65188508,33330.0,33329.0,1.14997544]
[1625715877453,5.65188508,33330.0,33329.0,1.20697544]
[1625715877753,5.65188508,33330.0,33329.0,1.16227544]
[1625715877903,5.63663859,33330.0,33329.0,1.16227544]
[1625715878579,5.6518598,33330.0,33329.0,1.16227544]
[1625715878730,3.91108436,33330.0,33329.0,1.16227544]
[1625715879031,1.5840755,33331.0,33329.0,2.8347919]
[1625715879032,0.70402465,33331.0,33329.0,2.8347919]
[1625715879333,1.70489564,33334.0,33330.0,1.67100953]
[1625715879483,0.001,33334.0,33333.0,0.66817717]
[1625715879633,0.001,33334.0,33333.0,0.97605717]
[1625715879784,0.001,33334.0,33333.0,5.66925332]
[1625715880084,0.001,33334.0,33333.0,7.31859483]
[1625715886092,0.001,33334.0,33333.0,3.62709483]
[1625715886544,0.001,33334.0,33333.0,2.4589042]
[1625715886696,5.357,33334.0,33333.0,2.2080242]
[1625715886845,6.357,33334.0,33333.0,2.2080242]
[1625715887145,6.357,33334.0,33333.0,1.20632805]
[1625715887447,6.357,33334.0,33333.0,0.53815088]
[1625715888347,6.356,33334.0,33333.0,0.53815088]
[1625715889548,5.356,33334.0,33333.0,0.53815088]
[1625715889696,6.356,33334.0,33333.0,0.53815088]
[1625715889846,5.356,33334.0,33333.0,1.20520202]
[1625715890148,5.356,33334.0,33333.0,2.20568373]
[1625715892701,0.001,33338.0,33333.0,3.3715444]
[1625715893000,0.001,33338.0,33336.0,0.66614132]
[1625715893149,0.001,33338.0,33337.0,0.057]
[1625715893834,0.001,33338.0,33337.0,0.38576]
[1625715894004,0.001,33338.0,33337.0,2.04998342]
[1625715894278,0.001,33338.0,33337.0,3.69535093]
[1625715895476,0.001,33338.0,33337.0,5.02320198]
[1625715895776,0.001,33338.0,33337.0,5.02733114]
[1625715896551,0.001,33338.0,33337.0,5.02320198]
[1625715897141,0.001,33338.0,33337.0,3.69535093]
[1625715904488,0.001,33338.0,33337.0,4.19309269]
[1625715906439,0.001,33342.0,33337.0,4.19309269]
[1625715906590,0.001,33342.0,33340.0,1.16113097]
[1625715906741,0.001,33342.0,33341.0,0.057]
[1625715907117,0.001,33342.0,33341.0,0.55450045]
[1625715908243,0.001,33342.0,33341.0,1.03565133]
[1625715908543,0.001,33342.0,33341.0,0.53815088]
[1625715909595,0.001,33342.0,33341.0,1.0356451]
[1625715909896,0.001,33342.0,33341.0,0.53815088]
[1625715910046,0.001,33342.0,33341.0,1.03579958]
[1625715910195,0.001,33342.0,33341.0,1.03992398]
[1625715911096,0.001,33342.0,33341.0,1.70309042]
[1625715911396,0.001,33342.0,33341.0,1.03992398]
[1625715912522,0.001,33342.0,33341.0,1.70314356]
[1625715913048,1.001,33342.0,33341.0,1.70314356]
[1625715913199,1.001,33342.0,33341.0,1.69901916]
[1625715913349,1.001,33342.0,33341.0,0.53815088]
[1625715914853,1.001,33342.0,33341.0,0.48115088]
[1625715915003,1.001,33342.0,33341.0,0.53815088]
[1625715915310,1.001,33342.0,33341.0,0.48115088]
[1625715916427,1.0162381,33342.0,33341.0,0.48115088]
[1625715917253,1.54236914,33342.0,33341.0,0.48115088]
[1625715917404,1.24385914,33342.0,33341.0,0.48115088]
[1625715917554,2.24385914,33342.0,33337.0,0.48115088]
[1625715917706,4.52393027,33342.0,33337.0,0.24057544]
[1625715918007,3.28028911,33338.0,33337.0,0.24057544]
[1625715918159,3.60338911,33338.0,33335.0,0.001]
[1625715918308,0.48115088,33336.0,33335.0,0.001]
[1625715918459,2.76220253,33336.0,33335.0,0.001]
[1625715918608,3.76220253,33336.0,33335.0,0.001]
[1625715918759,4.99037577,33336.0,33335.0,0.001]
[1625715918908,2.70947693,33336.0,33335.0,0.001]
[1625715919058,1.72471137,33336.0,33335.0,0.001]
[1625715919209,2.72471137,33336.0,33335.0,0.001]
[1625715919359,3.77783726,33336.0,33334.0,0.002]
[1625715919511,1.22881162,33335.0,33334.0,0.002]
[1625715919733,2.28199272,33335.0,33334.0,0.002]
[1625715919884,3.28199272,33335.0,33334.0,0.002]
[1625715921011,4.52640682,33335.0,33334.0,0.002]
[1625715921161,3.28199272,33335.0,33334.0,0.002]
[1625715921686,4.52639529,33335.0,33334.0,0.002]
[1625715921985,4.51116003,33335.0,33334.0,0.002]
[1625715922663,3.51116003,33335.0,33334.0,0.002]
[1625715922813,4.51116003,33335.0,33334.0,0.002]
[1625715923413,4.52639376,33335.0,33334.0,0.002]
[1625715923941,5.93103424,33335.0,33334.0,0.002]
[1625715924090,5.91580051,33335.0,33334.0,0.002]
[1625715925293,5.91580051,33335.0,33332.0,0.24157544]
[1625715925442,2.28268126,33333.0,33332.0,0.24157544]
[1625715926118,3.28268126,33333.0,33332.0,0.24157544]
[1625715928448,2.28268126,33333.0,33332.0,0.24157544]
[1625715928596,3.28268126,33333.0,33332.0,0.24157544]
[1625715928896,4.51132268,33333.0,33332.0,0.24157544]
[1625715929275,3.28268126,33333.0,33332.0,0.24157544]
[1625715932426,4.51097451,33333.0,33332.0,0.24157544]
[1625715933326,4.60217451,33333.0,33332.0,0.24157544]
[1625715933851,3.51097451,33333.0,33332.0,0.24157544]
[1625715934002,4.51097451,33333.0,33332.0,0.24157544]
[1625715935277,4.51097451,33333.0,33332.0,0.001]
[1625715935577,5.91545003,33333.0,33332.0,0.001]
[1625715937231,5.91545003,33333.0,33330.0,0.001]
[1625715937382,4.91641732,33331.0,33330.0,0.001]
[1625715937609,5.26876732,33331.0,33330.0,0.001]
[1625715937758,6.26876732,33331.0,33330.0,0.001]
[1625715937908,5.26876732,33331.0,33330.0,0.001]
[1625715938057,6.26876732,33331.0,33330.0,0.001]
[1625715938659,6.50934276,33331.0,33330.0,0.001]
[1625715939487,5.10472734,33331.0,33330.0,0.001]
[1625715941219,6.50857576,33331.0,33330.0,0.001]
[1625715941520,5.10472734,33331.0,33330.0,0.001]
[1625715941895,4.10472734,33331.0,33330.0,0.001]
[1625715942046,5.11993715,33331.0,33330.0,0.001]
[1625715942719,5.11993715,33331.0,33329.0,0.8623]
[1625715943020,5.10472734,33331.0,33329.0,0.8623]
[1625715943170,2.28039496,33330.0,33329.0,0.8623]
[1625715943320,3.29560973,33330.0,33329.0,0.8633]
[1625715943619,4.52328302,33330.0,33329.0,0.8633]
[1625715944144,3.29560973,33330.0,33329.0,0.8633]
[1625715946322,3.29560973,33330.0,33329.0,0.8623]
[1625715954064,3.3309495,33330.0,33329.0,0.8623]
[1625715954358,4.55752713,33330.0,33329.0,0.8623]
[1625715955710,3.38600973,33330.0,33329.0,0.8623]
[1625715955860,3.29560973,33330.0,33329.0,0.8623]
[1625715956011,4.52222879,33330.0,33329.0,0.8623]
[1625715956160,4.55756823,33330.0,33329.0,0.8623]
[1625715956765,4.64826823,33330.0,33329.0,0.8623]
[1625715957063,4.61292879,33330.0,33329.0,0.8623]
[1625715957891,4.64826867,33330.0,33329.0,0.8623]
[1625715958042,4.64826867,33330.0,33326.0,0.001]
[1625715958189,4.64826867,33330.0,33319.0,0.14460537]
[1625715958340,4.64826867,33330.0,33318.0,0.24057544]
[1625715958341,0.52589474,33321.0,33318.0,0.24057544]
[1625715958495,0.75146474,33321.0,33316.0,0.003]
[1625715958641,0.5259314,33319.0,33316.0,0.003]
[1625715958941,1.48115088,33317.0,33316.0,0.003]
[1625715959842,2.70858524,33317.0,33316.0,0.003]
[1625715959993,3.76010219,33317.0,33316.0,0.003]
[1625715960143,3.84890219,33317.0,33316.0,0.003]
[1625715960818,3.86411348,33317.0,33316.0,0.003]
[1625715961122,3.77531348,33317.0,33316.0,0.003]
[1625715962473,5.00230393,33317.0,33311.0,0.9565]
[1625715962620,4.0327,33312.0,33311.0,0.9565]
[1625715962770,4.2941,33312.0,33311.0,0.9072]
[1625715962919,4.53467544,33312.0,33311.0,0.9072]
[1625715963220,5.53467544,33312.0,33311.0,0.9072]
[1625715963371,6.06064748,33312.0,33311.0,0.9072]
[1625715964065,5.53467544,33312.0,33311.0,0.9072]
[1625715967353,5.53467544,33312.0,33311.0,0.9032]
[1625715967502,5.53467544,33312.0,33311.0,0.9602]
[1625715968329,5.53467544,33312.0,33307.0,0.04557544]
[1625715968501,5.59167544,33312.0,33307.0,0.04557544]
[1625715968641,0.17544236,33310.0,33307.0,0.04557544]
[1625715968778,0.057,33309.0,33307.0,0.04557544]
[1625715969081,0.24057544,33308.0,33307.0,0.04557544]
[1625715969233,0.29757544,33308.0,33307.0,0.04557544]
[1625715969383,1.29757544,33308.0,33307.0,0.04557544]
[1625715970960,0.29757544,33308.0,33307.0,0.04557544]
[1625715971261,1.29757544,33308.0,33307.0,0.04557544]
[1625715972161,1.24057544,33308.0,33307.0,0.04557544]
[1625715972461,0.29757544,33308.0,33307.0,0.04557544]
[1625715972614,1.29757544,33308.0,33307.0,0.04557544]
[1625715972912,1.24057544,33308.0,33307.0,0.04557544]
[1625715975247,1.24057544,33308.0,33307.0,1.57816151]
[1625715975396,1.24057544,33308.0,33307.0,2.25931088]
[1625715975770,1.24057544,33308.0,33307.0,3.45172379]
[1625715976220,0.24057544,33308.0,33307.0,3.45172379]
[1625715976896,1.24057544,33308.0,33307.0,3.45172379]
[1625715977346,0.001,33311.0,33307.0,3.45172379]
[1625715977496,0.001,33311.0,33307.0,4.81376957]
[1625715977798,0.001,33311.0,33310.0,4.76630351]
[1625715977946,0.001,33311.0,33310.0,5.03842351]
[1625715978395,1.001,33311.0,33310.0,5.03842351]
[1625715978546,0.001,33311.0,33310.0,5.03842351]
[1625715979071,0.001,33311.0,33310.0,5.27899895]
[1625715979828,1.001,33311.0,33310.0,5.27899895]
[1625715980648,0.001,33311.0,33310.0,5.27899895]
[1625715981398,0.001,33311.0,33310.0,5.28313936]
[1625715982828,0.001,33311.0,33310.0,6.81375427]
[1625715982978,0.002,33316.0,33310.0,6.81375427]
[1625715983126,0.002,33316.0,33315.0,0.48115088]
[1625715983276,0.002,33316.0,33315.0,5.24246432]
[1625715985308,0.24057544,33317.0,33315.0,5.24246432]
[1625715985458,0.24057544,33317.0,33316.0,4.76380918]
[1625715990115,0.24057544,33317.0,33316.0,3.40272084]
[1625715990116,1.24057544,33317.0,33316.0,3.40272084]
[1625715990264,0.24057544,33317.0,33316.0,3.40272084]
[1625715990868,4.2493,33319.0,33316.0,3.40272084]
[1625715991167,4.2493,33319.0,33318.0,2.45585239]
[1625715992145,5.2493,33319.0,33318.0,2.45585239]
[1625715992971,5.2493,33319.0,33318.0,3.64853634]
[1625715993121,5.2493,33319.0,33318.0,2.45585239]
[1625715994549,5.2493,33319.0,33318.0,3.6487253]
[1625715994923,5.2493,33319.0,33318.0,2.45585239]
[1625715995300,5.2473,33319.0,33318.0,2.45585239]
[1625715997029,5.5709,33319.0,33318.0,2.45585239]
[1625715997179,5.5709,33319.0,33318.0,1.43341688]
[1625715997329,5.5709,33319.0,33318.0,2.45757167]
[1625715997630,5.71593893,33319.0,33318.0,1.43341688]
[1625715997930,7.91297036,33319.0,33318.0,0.24057544]
[1625715998230,9.14337339,33319.0,33318.0,0.24057544]
[1625715998380,10.54960208,33319.0,33318.0,0.24057544]
[1625716000184,10.56479514,33319.0,33318.0,0.24057544]
[1625716000861,12.14686209,33319.0,33318.0,0.24057544]
[1625716001911,10.56479514,33319.0,33318.0,0.24057544]
[1625716002286,10.56479514,33319.0,33311.0,0.25690774]
[1625716002436,0.0898,33318.0,33311.0,0.25690774]
[1625716002587,2.28540295,33312.0,33310.0,0.002]
[1625716002736,0.057,33311.0,33310.0,0.002]
[1625716002889,2.34242304,33311.0,33310.0,0.002]
[1625716003036,3.34242304,33311.0,33310.0,0.002]
[1625716003187,3.82357392,33311.0,33310.0,0.002]
[1625716003339,5.0540797,33311.0,33310.0,0.002]
[1625716003942,3.82357392,33311.0,33310.0,0.002]
[1625716004089,5.05388967,33311.0,33310.0,0.002]
[1625716004389,4.05388967,33311.0,33310.0,0.002]
[1625716004539,5.05388967,33311.0,33310.0,0.002]
[1625716004688,4.05388967,33311.0,33310.0,0.002]
[1625716004839,5.05388967,33311.0,33310.0,0.002]
[1625716005139,3.82357392,33311.0,33310.0,0.002]
[1625716006198,2.82357392,33311.0,33310.0,0.002]
[1625716006344,3.82357392,33311.0,33310.0,0.002]
[1625716007317,3.82357392,33311.0,33307.0,0.17241358]
[1625716007617,0.1759013,33308.0,33307.0,0.17241358]
[1625716007767,0.58435393,33308.0,33307.0,0.17241358]
[1625716008593,1.23289429,33308.0,33307.0,0.17241358]
[1625716008894,1.58435067,33308.0,33307.0,0.17241358]
[1625716009046,0.58435067,33308.0,33307.0,0.17241358]
[1625716009196,1.58435067,33308.0,33307.0,0.17241358]
[1625716009348,2.28743164,33308.0,33307.0,0.17241358]
[1625716009647,1.58435067,33308.0,33307.0,0.17241358]
[1625716010848,2.28741427,33308.0,33307.0,0.17241358]
[1625716011299,1.58435067,33308.0,33307.0,0.17241358]
[1625716011600,2.37701707,33308.0,33307.0,0.17241358]
[1625716011749,3.4315904,33308.0,33307.0,0.001]
[1625716012049,4.66194065,33308.0,33307.0,0.001]
[1625716012356,3.66194065,33308.0,33307.0,0.001]
[1625716012499,4.66194065,33308.0,33307.0,0.001]
[1625716012799,6.0678252,33308.0,33307.0,0.001]
[1625716012949,4.66194065,33308.0,33307.0,0.001]
[1625716013325,4.90251609,33308.0,33302.0,3.14445509]
[1625716013474,4.90251609,33308.0,33302.0,2.45703053]
[1625716013475,0.52729758,33304.0,33302.0,2.45703053]
[1625716013625,0.057,33303.0,33302.0,2.45703053]
[1625716014001,1.057,33303.0,33302.0,3.14444688]
[1625716014378,1.057,33303.0,33302.0,2.45703053]
[1625716014678,1.057,33303.0,33302.0,3.14423728]
[1625716014976,1.057,33303.0,33302.0,2.45703053]
[1625716015277,1.53815088,33303.0,33302.0,2.45703053]
[1625716015728,1.53815088,33303.0,33302.0,3.1495811]
[1625716016176,6.84105088,33303.0,33302.0,3.1495811]
[1625716016326,6.84105088,33303.0,33302.0,3.1475811]
[1625716016627,6.84105088,33303.0,33302.0,4.19919779]
[1625716019333,6.84105088,33303.0,33302.0,4.43977323]
[1625716020157,6.84105088,33303.0,33302.0,3.4210906]
[1625716020606,6.84105088,33303.0,33302.0,3.3972906]
[1625716021056,6.78405088,33303.0,33302.0,3.3972906]
[1625716021508,6.84105088,33303.0,33302.0,3.3787906]
[1625716022183,6.84105088,33303.0,33302.0,4.60833996]
[1625716022933,6.3029,33303.0,33302.0,4.60833996]
[1625716023086,6.3029,33303.0,33302.0,6.01348322]
[1625716023385,6.3029,33303.0,33302.0,6.25405866]
[1625716023534,5.3029,33303.0,33302.0,7.8336065]
[1625716023684,5.3029,33303.0,33302.0,7.83775442]
[1625716024437,5.3029,33303.0,33302.0,7.8336065]
[1625716024584,5.3029,33303.0,33302.0,6.25405866]
[1625716024736,6.3029,33303.0,33302.0,6.25405866]
[1625716025037,6.3029,33303.0,33302.0,6.25820665]
[1625716025712,6.2462,33303.0,33302.0,6.25820665]
[1625716026615,6.2462,33303.0,33302.0,7.83737444]
[1625716027216,5.2462,33303.0,33302.0,7.83737444]
[1625716033071,6.2462,33303.0,33302.0,7.83737444]
[1625716033296,5.2462,33303.0,33302.0,7.83737444]
[1625716035923,6.2462,33303.0,33302.0,7.83737444]
[1625716036225,5.2462,33303.0,33302.0,7.83737444]
[1625716037049,6.2462,33303.0,33302.0,7.83737444]
[1625716039453,6.3032,33303.0,33302.0,7.83737444]
[1625716039903,6.2462,33303.0,33302.0,7.83737444]
[1625716040054,6.2462,33303.0,33302.0,6.25820665]
[1625716040206,6.2462,33303.0,33302.0,7.83938479]
[1625716041932,5.2462,33303.0,33302.0,7.83938479]
[1625716042082,6.2462,33303.0,33302.0,7.83938479]
[1625716056202,6.2462,33303.0,33302.0,9.60250014]
[1625716060786,5.2462,33303.0,33302.0,9.60250014]
[1625716060936,6.2462,33303.0,33302.0,9.60250014]
[1625716061688,5.2462,33303.0,33302.0,9.60250014]
[1625716062963,6.2462,33303.0,33302.0,9.60250014]
[1625716065663,6.2462,33303.0,33302.0,4.70799236]
[1625716066041,6.2462,33303.0,33302.0,9.64519701]
[1625716072723,6.51637,33303.0,33302.0,9.64519701]
[1625716073322,6.57337,33303.0,33302.0,9.64519701]
[1625716073473,6.57337,33303.0,33302.0,7.88208166]
[1625716073623,6.5885412,33303.0,33302.0,7.88208166]
[1625716073773,7.11044748,33303.0,33302.0,7.88208166]
[1625716074073,7.35102292,33303.0,33302.0,7.88208166]
[1625716074222,7.35102292,33303.0,33302.0,7.64150622]
[1625716074376,9.09404467,33303.0,33302.0,6.06032808]
[1625716074674,10.31550902,33303.0,33302.0,6.06032808]
[1625716075949,10.55608446,33303.0,33302.0,6.06032808]
[1625716076098,10.55608446,33303.0,33302.0,6.05222808]
[1625716076249,9.33462011,33303.0,33302.0,6.05222808]
[1625716076699,10.5529102,33303.0,33302.0,6.05222808]
[1625716077073,9.33462011,33303.0,33302.0,6.05222808]
[1625716077674,10.55297059,33303.0,33302.0,6.05222808]
[1625716078352,10.55297059,33303.0,33302.0,6.04808009]
[1625716078651,10.55297059,33303.0,33302.0,6.05222909]
[1625716078951,10.53779939,33303.0,33302.0,6.04808009]
[1625716079101,9.31944891,33303.0,33302.0,6.02068009]
[1625716079326,10.53911031,33303.0,33302.0,6.02068009]
[1625716079626,9.31944891,33303.0,33302.0,6.02068009]
[1625716079775,9.31944891,33303.0,33302.0,6.02482873]
[1625716080529,8.27367071,33303.0,33302.0,6.02482873]
[1625716081353,9.31783093,33303.0,33302.0,6.02482873]
[1625716081505,8.27367071,33303.0,33302.0,6.02482873]
[1625716081729,7.57642716,33303.0,33302.0,7.61248972]
[1625716081879,7.30625716,33303.0,33302.0,7.61248972]
[1625716082031,8.00286803,33303.0,33302.0,7.61248972]
[1625716082178,7.30625716,33303.0,33302.0,7.61248972]
[1625716083004,7.30625716,33303.0,33302.0,6.02482873]
[1625716083005,9.04702714,33303.0,33302.0,6.02482873]
[1625716083303,8.00259996,33303.0,33302.0,6.02482873]
[1625716083753,9.04702056,33303.0,33302.0,6.02482873]
[1625716083979,8.00259996,33303.0,33302.0,6.02482873]
[1625716084582,7.30625716,33303.0,33302.0,6.02482873]
[1625716085557,7.65455347,33303.0,33302.0,7.6120652]
[1625716086232,6.65455347,33303.0,33302.0,7.6120652]
[1625716086382,6.65455347,33303.0,33302.0,7.9131352]
[1625716086533,7.13264719,33303.0,33302.0,7.9131352]
[1625716086758,6.78435088,33303.0,33302.0,7.9131352]
[1625716087808,6.72735088,33303.0,33302.0,7.9131352]
[1625716088258,5.2462,33303.0,33302.0,7.9131352]
[1625716088560,5.2462,33303.0,33302.0,9.67634982]
[1625716088709,0.001,33306.0,33302.0,9.67634982]
[1625716089010,0.001,33306.0,33305.0,6.5236469]
[1625716089459,0.001,33306.0,33305.0,8.28677458]
[1625716090062,0.001,33306.0,33305.0,6.5236469]
[1625716090214,0.001,33306.0,33305.0,6.76422234]
[1625716090512,0.001,33306.0,33305.0,6.76836956]
[1625716093890,1.001,33306.0,33305.0,6.76836956]
[1625716094040,0.001,33306.0,33305.0,6.76836956]
[1625716094640,0.001,33306.0,33305.0,8.53125182]
[1625716096968,1.001,33306.0,33305.0,8.53125182]
[1625716097270,0.001,33306.0,33305.0,8.53125182]
[1625716097417,4.2316,33307.0,33305.0,8.53125182]
[1625716097644,4.2316,33307.0,33306.0,8.28402282]
[1625716098317,4.2316,33307.0,33306.0,8.28816972]
[1625716100870,4.2316,33307.0,33306.0,6.52561167]
[1625716101620,4.2316,33307.0,33306.0,8.28772657]
[1625716101995,4.2316,33307.0,33306.0,6.52561167]
[1625716102298,4.2316,33307.0,33306.0,8.28760765]
[1625716104324,4.2316,33307.0,33306.0,6.52561167]
[1625716107775,4.2316,33307.0,33306.0,8.28710665]
[1625716108301,4.2316,33307.0,33306.0,6.52561167]
[1625716109276,4.2316,33307.0,33306.0,8.28695988]
[1625716110553,4.2316,33307.0,33306.0,8.52753532]
[1625716110705,4.2316,33307.0,33306.0,6.76618711]
[1625716114461,4.2316,33307.0,33306.0,8.52711284]
[1625716115437,4.2316,33307.0,33306.0,6.76618711]
[1625716116189,0.001,33310.0,33306.0,8.5269118]
[1625716116414,0.001,33310.0,33309.0,6.5147292]
[1625716116566,0.001,33310.0,33309.0,6.75530464]
[1625716116717,0.001,33310.0,33309.0,6.75945306]
[1625716117844,0.001,33310.0,33309.0,11.49975306]
[1625716118668,0.002,33315.0,33309.0,11.49975306]
[1625716118669,0.002,33315.0,33309.0,13.50069328]
[1625716119046,0.002,33315.0,33314.0,6.51324727]
[1625716119194,0.002,33315.0,33314.0,6.76815727]
[1625716119345,0.002,33315.0,33314.0,8.52832551]
[1625716120246,0.002,33315.0,33314.0,9.04130531]
[1625716120552,0.002,33315.0,33314.0,9.03247098]
[1625716120697,0.002,33315.0,33314.0,9.51362186]
[1625716121001,0.002,33315.0,33314.0,9.01362186]
[1625716122349,0.002,33315.0,33314.0,13.38242186]
[1625716124455,0.002,33315.0,33314.0,11.62225362]
[1625716126933,0.002,33315.0,33314.0,7.25345362]
[1625716127084,0.002,33315.0,33314.0,6.99854362]
[1625716127386,0.001,33318.0,33314.0,6.99854362]
[1625716127685,0.001,33318.0,33315.0,0.00414649]
[1625716127835,0.001,33318.0,33317.0,4.91698368]
[1625716128285,0.001,33318.0,33317.0,4.92113024]
[1625716128660,0.001,33318.0,33317.0,5.40228112]
[1625716129116,1.001,33318.0,33317.0,5.40228112]
[1625716129261,1.058,33318.0,33317.0,5.40228112]
[1625716129415,1.058,33318.0,33317.0,2.76403616]
[1625716130091,1.40601931,33318.0,33317.0,1.00797056]
[1625716130388,1.92780419,33318.0,33317.0,0.83235004]
[1625716130687,1.82036032,33318.0,33317.0,0.83235004]
[1625716132489,1.82036032,33318.0,33317.0,0.48115088]
[1625716133088,2.06265032,33318.0,33317.0,0.34595088]
[1625716134215,2.06265032,33318.0,33317.0,0.69717307]
[1625716134364,2.40938776,33318.0,33317.0,0.69717307]
[1625716135267,1.40938776,33318.0,33317.0,0.69717307]
[1625716135420,1.16709776,33318.0,33317.0,0.69717307]
[1625716135567,1.82036032,33318.0,33317.0,1.22417208]
[1625716135717,1.29857544,33318.0,33317.0,1.57559001]
[1625716136017,1.29857544,33318.0,33317.0,2.62956865]
[1625716136320,1.29757544,33318.0,33317.0,2.62956865]
[1625716136468,1.29757544,33318.0,33317.0,1.57559001]
[1625716136768,1.64452961,33318.0,33317.0,1.57559001]
[1625716136918,2.16479891,33318.0,33317.0,0.87294989]
[1625716137148,2.16479891,33318.0,33317.0,1.57587795]
[1625716137669,1.64452961,33318.0,33317.0,2.6302473]
[1625716138948,1.29757544,33318.0,33317.0,2.6302473]
[1625716139097,1.64582134,33318.0,33317.0,2.6302473]
[1625716139398,1.29757544,33318.0,33317.0,3.86084528]
[1625716141049,1.64672679,33318.0,33317.0,2.6302473]
[1625716141499,0.29757544,33318.0,33317.0,3.86084244]
[1625716141802,1.29757544,33318.0,33317.0,3.86084244]
[1625716142560,1.64659076,33318.0,33317.0,3.86084244]
[1625716142849,1.82090594,33318.0,33317.0,2.6302473]
[1625716143010,2.51858441,33318.0,33317.0,2.6302473]
[1625716143456,1.82090594,33318.0,33317.0,2.6302473]
[1625716143751,1.51734036,33318.0,33317.0,2.6302473]
[1625716143902,0.82090594,33318.0,33317.0,2.6302473]
[1625716144054,1.82090594,33318.0,33317.0,2.6302473]
[1625716144203,2.51779659,33318.0,33317.0,2.6302473]
[1625716144502,2.51779659,33318.0,33317.0,3.86179908]
[1625716144652,1.51779659,33318.0,33317.0,3.86179908]
[1625716144805,2.51779659,33318.0,33317.0,3.86179908]
[1625716144955,2.51779659,33318.0,33317.0,2.6302473]
[1625716145406,3.56519683,33318.0,33317.0,2.6302473]
[1625716146309,2.51779659,33318.0,33317.0,3.86237907]
[1625716146460,2.17074859,33318.0,33317.0,5.27046431]
[1625716146696,1.64741809,33318.0,33317.0,5.27046431]
[1625716147886,1.29757544,33318.0,33317.0,5.27046431]
[1625716148036,0.29757544,33318.0,33317.0,5.27046431]
[1625716148187,0.24057544,33318.0,33317.0,5.27461286]
[1625716148487,0.24057544,33318.0,33317.0,6.85885337]
[1625716148938,3.9954,33320.0,33317.0,6.85885337]
[1625716149087,3.9954,33320.0,33317.0,11.66755337]
[1625716149239,3.9954,33320.0,33319.0,6.51255608]
[1625716150141,3.9954,33320.0,33319.0,6.5167037]
[1625716150442,3.9954,33320.0,33319.0,8.27626599]
[1625716150890,3.9954,33320.0,33319.0,8.51684143]
[1625716155398,3.4949,33320.0,33319.0,8.51684143]
[1625716155548,0.001,33321.0,33319.0,9.01684143]
[1625716155847,0.001,33321.0,33320.0,0.00414762]
[1625716156001,0.002,33326.0,33320.0,8.25835926]
[1625716156302,0.002,33326.0,33325.0,6.49839621]
[1625716156449,0.002,33326.0,33325.0,6.76532621]
[1625716156902,0.002,33326.0,33325.0,6.76947371]
[1625716157050,0.002,33326.0,33325.0,7.25062459]
[1625716157199,0.059,33326.0,33325.0,7.24647709]
[1625716157356,0.057,33326.0,33325.0,7.24647709]
[1625716157800,0.057,33326.0,33325.0,5.66578612]
[1625716163505,0.057,33326.0,33325.0,5.39885612]
[1625716168387,0.057,33326.0,33325.0,5.40300637]
[1625716175672,0.057,33326.0,33325.0,3.99794773]
[1625716176123,0.057,33326.0,33325.0,5.40417161]
[1625716179874,0.24057544,33327.0,33325.0,5.40417161]
[1625716180178,0.24057544,33327.0,33326.0,4.92213273]
[1625716180407,0.24057544,33327.0,33326.0,4.92627966]
[1625716181903,0.24057544,33327.0,33326.0,6.50820289]
[1625716182204,0.24057544,33327.0,33326.0,4.92627966]
[1625716182879,4.9354,33329.0,33326.0,4.92627966]
[1625716183179,4.9354,33329.0,33328.0,4.92105316]
[1625716183330,4.9354,33329.0,33328.0,5.1616286]
[1625716183632,4.95056313,33329.0,33328.0,5.16577541]
[1625716184158,5.00756313,33329.0,33328.0,5.16577541]
[1625716186409,4.95056313,33329.0,33328.0,5.16577541]
[1625716186731,0.01616313,33329.0,33328.0,5.66577541]
[1625716186888,0.001,33329.0,33328.0,5.66577541]
[1625716187034,0.001,33329.0,33328.0,7.24713347]